bitfinex/quotes_BTCUSD_20250303
["timestamp","ask_amount","ask_price","bid_price","bid_amount"]
[1741039412467,0.00028777,86223.0,86215.0,0.10892]
[1741039412673,0.00028777,86223.0,86215.0,0.10692]
[1741039412872,0.00028777,86223.0,86216.0,0.004]
[1741039413113,0.00028777,86223.0,86217.0,0.117612]
[1741039413516,0.23197,86218.0,86217.0,0.117612]
[1741039413721,0.78699,86218.0,86217.0,0.10652]
[1741039413930,2.75421,86218.0,86217.0,0.10652]
[1741039414228,0.53197,86218.0,86217.0,0.10652]
[1741039414586,0.53197,86218.0,86217.0,0.10752]
[1741039414790,0.53197,86218.0,86217.0,0.001]
[1741039415147,0.828987,86218.0,86217.0,0.001]
[1741039415497,0.75518,86218.0,86217.0,0.001]
[1741039415691,0.531994,86209.0,86208.0,0.1064]
[1741039416134,0.978621,86209.0,86208.0,0.1064]
[1741039416496,0.532023,86198.0,86194.0,0.10632]
[1741039416899,0.532032,86195.0,86194.0,0.10632]
[1741039417099,1.287145,86195.0,86194.0,0.10632]
[1741039417306,1.287145,86195.0,86178.0,0.01315465]
[1741039417307,0.3,86179.0,86178.0,0.01315465]
[1741039417509,0.232118,86163.0,86162.0,0.000338]
[1741039418353,0.232118,86163.0,86162.0,0.00073251]
[1741039419152,0.232107,86168.0,86162.0,0.00073251]
[1741039419355,0.232118,86163.0,86162.0,0.00073251]
[1741039419555,0.25357493,86163.0,86162.0,0.00073251]
[1741039420771,0.25357493,86163.0,86162.0,0.00473251]
[1741039420987,0.02145693,86163.0,86162.0,0.00473251]
[1741039421175,0.25357493,86163.0,86162.0,0.00473251]
[1741039421990,0.02145693,86163.0,86162.0,0.23685251]
[1741039422192,0.02145693,86163.0,86162.0,0.26053776]
[1741039422488,0.02145693,86163.0,86162.0,0.02841776]
[1741039422692,0.02145693,86163.0,86162.0,0.00473251]
[1741039422990,0.25357493,86163.0,86162.0,0.00073251]
[1741039423354,0.25357493,86163.0,86162.0,0.00373251]
[1741039423859,0.232139,86155.0,86154.0,0.07733249]
[1741039424031,0.232139,86155.0,86154.0,0.08506574]
[1741039424686,0.02145693,86163.0,86135.0,0.0003382]
[1741039424797,0.232169,86144.0,86143.0,0.00011833]
[1741039425005,0.3,86156.0,86143.0,0.00011833]
[1741039425269,0.232162,86147.0,86143.0,0.00011833]
[1741039425664,0.3,86156.0,86143.0,0.00011833]
[1741039425665,0.02145693,86144.0,86143.0,0.00011833]
[1741039426058,0.25362593,86144.0,86143.0,0.00011833]
[1741039426776,0.02145693,86144.0,86143.0,0.00011833]
[1741039426992,0.28790771,86144.0,86143.0,0.00011833]
[1741039427109,0.58790771,86144.0,86143.0,0.00829016]
[1741039427319,0.58790771,86144.0,86143.0,0.00311833]
[1741039427784,0.35573871,86144.0,86143.0,0.00311833]
[1741039427980,0.58790771,86144.0,86143.0,0.00311833]
[1741039428386,0.232207,86130.0,86129.0,0.05639472]
[1741039428979,0.232184,86139.0,86129.0,0.05639472]
[1741039429186,0.05573871,86144.0,86130.0,0.02886167]
[1741039429384,0.35573871,86144.0,86129.0,0.05639472]
[1741039429621,0.58790771,86144.0,86143.0,0.002]
[1741039430096,0.35573871,86144.0,86129.0,0.05639472]
[1741039430298,0.2322,86133.0,86129.0,0.05639472]
[1741039430499,0.232204,86131.0,86130.0,0.003]
[1741039430699,0.232204,86131.0,86130.0,0.00893947]
[1741039430923,0.232204,86131.0,86130.0,0.00593947]
[1741039431133,0.05573871,86143.0,86130.0,0.00593947]
[1741039431486,0.05573871,86143.0,86132.0,0.232199]
[1741039431619,0.05573871,86143.0,86134.0,0.232194]
[1741039431830,0.05573871,86143.0,86135.0,0.07619342]
[1741039432032,0.3,86144.0,86130.0,0.00593947]
[1741039432393,0.232178,86141.0,86130.0,0.00593947]
[1741039432583,0.23219,86137.0,86130.0,0.00593947]
[1741039432808,0.232183,86139.0,86130.0,0.00593947]
[1741039432986,0.001,86131.0,86130.0,0.01193947]
[1741039433143,0.001,86131.0,86130.0,0.24414647]
[1741039433347,0.232182,86140.0,86130.0,0.23814647]
[1741039433572,0.055608,86138.0,86131.0,0.05267572]
[1741039433777,3.3e-07,86138.0,86137.0,0.232188]
[1741039433972,0.00203086,86198.0,86138.0,0.3]
[1741039434173,0.232092,86173.0,86170.0,0.0785]
[1741039434381,0.232093,86172.0,86171.0,0.00785]
[1741039434581,0.1019819,86176.0,86171.0,0.00785]
[1741039434964,0.1019819,86176.0,86175.0,0.232085]
[1741039435980,0.1019819,86176.0,86171.0,0.00785]
[1741039435981,0.00011838,86176.0,86171.0,0.00785]
[1741039436163,0.232091,86173.0,86172.0,0.0364951]
[1741039436379,0.23209,86174.0,86171.0,0.00785]
[1741039436760,0.00011838,86176.0,86171.0,0.00785]
[1741039437076,0.00011838,86176.0,86175.0,0.232085]
[1741039437277,0.00011838,86176.0,86175.0,0.314185]
[1741039437923,0.00011838,86176.0,86175.0,0.363085]
[1741039438119,0.00011838,86176.0,86175.0,0.4324458]
[1741039438525,0.000169,86217.0,86191.0,0.232042]
[1741039438750,0.10225795,86192.0,86191.0,0.307342]
[1741039439643,0.000169,86217.0,86216.0,0.231975]
[1741039439837,0.00028728,86217.0,86216.0,0.4352325]
[1741039440657,0.00028728,86217.0,86216.0,0.73613607]
[1741039442086,0.00028728,86217.0,86216.0,0.73713607]
[1741039442497,0.00028728,86217.0,86216.0,0.63237607]
[1741039442739,0.00028728,86217.0,86216.0,0.35080107]
[1741039442950,0.00028728,86217.0,86216.0,0.58277607]
[1741039443240,0.00028728,86217.0,86216.0,0.58877607]
[1741039443465,0.00028728,86217.0,86216.0,0.58277607]
[1741039443797,0.00028728,86217.0,86216.0,0.35480107]
[1741039444209,0.23225928,86217.0,86216.0,0.0271975]
[1741039444370,0.00028728,86217.0,86216.0,0.235975]
[1741039444770,0.00028728,86217.0,86216.0,0.004]
[1741039445138,0.00028728,86217.0,86204.0,0.00162367]
[1741039445335,0.231987,86212.0,86203.0,0.1044]
[1741039445563,0.23226128,86217.0,86203.0,0.1044]
[1741039445852,0.231983,86214.0,86204.0,0.02323]
[1741039446072,0.00028728,86217.0,86204.0,0.02323]
[1741039446272,0.231994,86209.0,86204.0,0.02623]
[1741039446477,0.3234,86329.0,86226.0,0.0492]
[1741039446701,0.03279448,86328.0,86296.0,0.1]
[1741039446871,0.03279448,86328.0,86287.0,0.3]
[1741039446872,0.03279448,86328.0,86327.0,0.1]
[1741039447192,0.00039485,86329.0,86327.0,0.1]
[1741039447369,0.231677,86327.0,86322.0,0.1]
[1741039447570,0.231676,86328.0,86319.0,0.1]
[1741039447773,0.231676,86328.0,86287.0,0.347673]
[1741039447774,0.231684,86325.0,86309.0,0.1]
[1741039447972,0.00039485,86329.0,86309.0,0.1]
[1741039448172,0.00039485,86329.0,86328.0,0.231674]
[1741039448377,0.00039485,86329.0,86328.0,0.20267399]
[1741039448557,0.00039485,86329.0,86328.0,0.30429562]
[1741039448761,0.001,86389.0,86346.0,0.099]
[1741039448961,0.001,86389.0,86337.0,0.0784]
[1741039448962,0.15237134,86388.0,86340.0,0.03157966]
[1741039449159,0.15237134,86388.0,86356.0,0.231599]
[1741039449160,0.01287654,86357.0,86356.0,0.231599]
[1741039449488,0.01287654,86357.0,86356.0,0.22810552]
[1741039449687,0.01287654,86357.0,86356.0,0.0472]
[1741039449890,0.01287654,86357.0,86356.0,0.28041979]
[1741039450064,0.01287654,86357.0,86356.0,0.278799]
[1741039450292,0.01287654,86357.0,86356.0,0.0472]
[1741039450493,0.10584,86394.0,86337.0,0.06886899]
[1741039450809,0.1,86390.0,86337.0,0.06724805]
[1741039451012,0.231601,86356.0,86340.0,0.231642]
[1741039451241,0.3,86372.0,86337.0,0.06724805]
[1741039451422,0.231586,86361.0,86338.0,0.00162123]
[1741039451585,0.231625,86347.0,86337.0,0.06724805]
[1741039451786,0.3,86359.0,86337.0,0.06724805]
[1741039451996,0.3,86357.0,86337.0,0.06724805]
[1741039452195,0.231614,86351.0,86337.0,0.06724805]
[1741039452393,0.3,86366.0,86337.0,0.06736646]
[1741039452598,0.3,86351.0,86337.0,0.06736646]
[1741039452813,0.231631,86345.0,86337.0,0.06736646]
[1741039453025,0.231591,86359.0,86338.0,0.231647]
[1741039453228,0.231591,86359.0,86337.0,0.06736646]
[1741039453229,0.20548,86385.0,86339.0,0.00162126]
[1741039453485,0.3,86382.0,86337.0,0.06736646]
[1741039453686,0.3,86364.0,86337.0,0.06736646]
[1741039453883,0.231635,86343.0,86337.0,0.06736646]
[1741039454085,0.231647,86338.0,86337.0,0.06736646]
[1741039454605,0.231636,86342.0,86337.0,0.06736646]
[1741039454805,0.231647,86338.0,86337.0,0.06736646]
[1741039455033,0.231647,86338.0,86337.0,0.00311841]
[1741039455393,0.531647,86338.0,86337.0,0.00011841]
[1741039455578,0.531647,86338.0,86337.0,0.00511841]
[1741039455924,0.64804201,86338.0,86337.0,0.00511841]
[1741039456267,0.65672901,86338.0,86337.0,0.00011841]
[1741039456937,0.65672901,86338.0,86337.0,4.1e-07]
[1741039457145,0.1,86336.0,86287.0,0.231784]
[1741039457483,0.3,86316.0,86286.0,0.0796]
[1741039457636,0.231784,86287.0,86286.0,0.0796]
[1741039458057,0.3,86314.0,86286.0,0.0796]
[1741039458231,0.3,86312.0,86286.0,0.0796]
[1741039458434,0.231784,86287.0,86286.0,0.0796]
[1741039458671,0.231774,86291.0,86286.0,0.0796]
[1741039458870,0.3,86310.0,86270.0,0.0773]
[1741039459110,0.3,86308.0,86270.0,0.0773]
[1741039459237,0.231798,86282.0,86270.0,0.0773]
[1741039459445,0.231797,86283.0,86270.0,0.0773]
[1741039459645,0.3,86294.0,86270.0,0.309128]
[1741039459877,0.231826,86272.0,86270.0,0.0773]
[1741039460077,0.3,86309.0,86270.0,0.0773]
[1741039460336,0.231827,86271.0,86270.0,0.0773]
[1741039460535,0.3,86294.0,86270.0,0.0773]
[1741039460761,0.231827,86271.0,86270.0,0.0773]
[1741039460963,0.231836,86268.0,86259.0,0.231859]
[1741039461164,0.0123969,86271.0,86258.0,0.0481]
[1741039461364,0.10496,86299.0,86267.0,0.231836]
[1741039461604,0.3,86290.0,86258.0,0.0481]
[1741039461776,0.3,86290.0,86272.0,0.231823]
[1741039461960,0.01234059,86290.0,86270.0,0.23183]
[1741039462158,0.231776,86290.0,86269.0,0.231831]
[1741039462358,0.231794,86284.0,86274.0,0.231817]
[1741039462590,0.231794,86284.0,86258.0,0.0481]
[1741039462966,0.01253156,86290.0,86273.0,0.23182]
[1741039463149,0.231807,86279.0,86271.0,0.231827]
[1741039463362,0.231801,86281.0,86273.0,0.231821]
[1741039463768,0.231803,86280.0,86271.0,0.231827]
[1741039463908,0.01197457,86290.0,86258.0,0.0501]
[1741039464115,0.463474,86305.0,86270.0,0.000339]
[1741039464116,0.231814,86277.0,86270.0,0.000339]
[1741039464355,0.231814,86276.0,86270.0,0.000339]
[1741039464884,0.231817,86275.0,86270.0,0.000339]
[1741039465041,0.231814,86276.0,86274.0,0.004]
[1741039465243,0.231816,86275.0,86274.0,0.004]
[1741039465666,0.231827,86271.0,86270.0,0.000339]
[1741039465876,0.231827,86271.0,86270.0,0.004339]
[1741039466077,0.231593,86359.0,86337.0,0.33165]
[1741039466315,0.3234,86394.0,86337.0,0.43165]
[1741039466461,5e-07,86338.0,86337.0,0.43165]
[1741039466671,5e-07,86338.0,86337.0,0.73165]
[1741039466850,5.6e-07,86338.0,86337.0,1.49517406]
[1741039467052,0.174688,86387.0,86374.0,0.1]
[1741039467302,0.000169,86388.0,86381.0,0.23153]
[1741039467474,0.0124088,86387.0,86374.0,0.1]
[1741039467673,0.3,86382.0,86374.0,0.1]
[1741039467873,0.00011819,86387.0,86385.0,0.231519]
[1741039468075,0.00011819,86387.0,86386.0,0.231518]
[1741039468299,0.00011819,86387.0,86386.0,0.431518]
[1741039468679,1.9e-07,86388.0,86387.0,0.431516]
[1741039468908,1.9e-07,86388.0,86387.0,0.731516]
[1741039470164,1.9e-07,86388.0,86387.0,0.431516]
[1741039471576,1.9e-07,86388.0,86387.0,0.438516]
[1741039472246,1.9e-07,86388.0,86387.0,0.207]
[1741039472451,1.9e-07,86388.0,86387.0,0.438516]
[1741039473264,1.9e-07,86388.0,86387.0,0.207]
[1741039473465,1.9e-07,86388.0,86387.0,0.107]
[1741039473701,1.9e-07,86388.0,86387.0,0.438516]
[1741039476545,1.9e-07,86388.0,86387.0,0.4388548]
[1741039477127,1.9e-07,86388.0,86387.0,0.2073388]
[1741039477529,1.9e-07,86388.0,86387.0,0.4388548]
[1741039477704,1.9e-07,86388.0,86387.0,0.2073388]
[1741039477907,1.9e-07,86388.0,86387.0,0.4388548]
[1741039478150,1.9e-07,86388.0,86387.0,0.2073388]
[1741039478361,1.9e-07,86388.0,86387.0,0.4388548]
[1741039478903,1.9e-07,86388.0,86387.0,0.2073388]
[1741039479031,1.9e-07,86388.0,86387.0,0.44047523]
[1741039479233,1.9e-07,86388.0,86387.0,0.4388548]
[1741039479640,1.9e-07,86388.0,86387.0,0.3388548]
[1741039479845,1.9e-07,86388.0,86387.0,0.2073388]
[1741039480027,1.9e-07,86388.0,86387.0,0.4388548]
[1741039480379,1.9e-07,86388.0,86387.0,0.2073388]
[1741039480534,1.9e-07,86388.0,86387.0,0.20895916]
[1741039480729,1.9e-07,86388.0,86387.0,0.2073388]
[1741039481134,1.9e-07,86388.0,86387.0,0.44047514]
[1741039481388,1.9e-07,86388.0,86387.0,0.4388548]
[1741039481599,1.9e-07,86388.0,86387.0,0.2073388]
[1741039481758,1.9e-07,86388.0,86387.0,0.1823388]
[1741039481978,1.9e-07,86388.0,86387.0,0.3038548]
[1741039482180,1.9e-07,86388.0,86387.0,0.1723388]
[1741039483003,1.9e-07,86388.0,86387.0,0.4038548]
[1741039483407,1.9e-07,86388.0,86387.0,0.1723388]
[1741039484366,0.23151319,86388.0,86387.0,0.0003388]
[1741039484862,0.53151319,86388.0,86387.0,0.0003388]
[1741039485069,0.84032019,86388.0,86387.0,0.0003388]
[1741039485271,0.84032019,86388.0,86354.0,0.25230357]
[1741039485272,0.23158,86363.0,86362.0,0.172]
[1741039485483,0.231558,86372.0,86371.0,0.00039443]
[1741039485936,0.231549,86375.0,86372.0,0.1]
[1741039486142,0.231551,86374.0,86372.0,0.1]
[1741039486379,0.3,86379.0,86372.0,0.1]
[1741039486582,0.231556,86372.0,86371.0,0.00039443]
[1741039487270,0.531556,86372.0,86371.0,0.00039443]
[1741039487480,0.828189,86372.0,86371.0,0.00039443]
[1741039487860,0.828189,86372.0,86371.0,4.3e-07]
[1741039488080,0.531556,86372.0,86371.0,4.3e-07]
[1741039488540,0.231631,86344.0,86342.0,0.14300042]
[1741039488761,0.231631,86344.0,86337.0,0.14300042]
[1741039488762,0.231647,86338.0,86337.0,0.14300042]
[1741039488990,0.231636,86342.0,86341.0,0.1]
[1741039489321,0.0122811,86342.0,86341.0,0.1]
[1741039489519,0.231633,86344.0,86340.0,0.1]
[1741039489727,0.23165,86337.0,86336.0,0.25269842]
[1741039490128,0.23165,86337.0,86336.0,0.00039485]
[1741039490471,0.53165,86337.0,86336.0,0.00039485]
[1741039490647,0.93148,86337.0,86336.0,0.00039485]
[1741039490985,0.53165,86337.0,86336.0,0.00039485]
[1741039491139,0.737534,86337.0,86336.0,0.00039485]
[1741039491764,0.53165,86337.0,86336.0,0.00039485]
[1741039491970,0.688552,86337.0,86336.0,0.00039485]
[1741039492166,0.53165,86337.0,86336.0,0.00039485]
[1741039493402,0.231671,86329.0,86328.0,0.08339484]
[1741039493596,0.231704,86317.0,86316.0,0.12639526]
[1741039493732,0.3,86335.0,86312.0,0.08339484]
[1741039493939,0.10652,86352.0,86312.0,0.08339484]
[1741039493940,0.231714,86313.0,86312.0,0.04300042]
[1741039494255,0.231717,86312.0,86311.0,0.00039521]
[1741039496788,0.531747,86301.0,86300.0,0.0003394]
[1741039496976,0.531763,86295.0,86284.0,0.0003394]
[1741039497176,0.67348,86295.0,86294.0,0.00039561]
[1741039498041,0.531763,86295.0,86294.0,0.00039561]
[1741039498292,0.676916,86295.0,86294.0,0.00039561]
[1741039498458,0.676916,86295.0,86283.0,0.04300042]
[1741039498459,0.231792,86284.0,86283.0,0.02973543]
[1741039498662,0.231792,86284.0,86283.0,0.000396]
[1741039498871,0.3,86300.0,86291.0,0.08339484]
[1741039499176,0.231741,86303.0,86295.0,0.02973543]
[1741039499382,0.23176,86296.0,86295.0,0.11313027]
[1741039499675,0.231728,86308.0,86306.0,0.08339484]
[1741039499676,0.53173,86307.0,86306.0,0.08339484]
[1741039499811,0.23173,86307.0,86306.0,0.08339484]
[1741039500021,0.23171,86315.0,86299.0,0.02973543]
[1741039500022,0.231677,86327.0,86299.0,0.02973543]
[1741039500226,0.231677,86327.0,86283.0,0.000396]
[1741039500227,0.84768725,86326.0,86315.0,0.02973543]
[1741039500460,0.01194682,86344.0,86343.0,0.11313027]
[1741039500667,0.07026457,86387.0,86320.0,0.3]
[1741039500668,0.3234,86386.0,86352.0,0.08339484]
[1741039500886,0.10568,86394.0,86331.0,0.0788]
[1741039500887,0.01233918,86372.0,86367.0,0.08339484]
[1741039501275,0.231567,86368.0,86361.0,0.02973543]
[1741039501425,0.231602,86355.0,86354.0,0.25230357]
[1741039501586,0.0001694,86372.0,86360.0,0.08339484]
[1741039501791,0.0001694,86372.0,86371.0,0.31495384]
[1741039502139,0.0001694,86372.0,86371.0,0.36543384]
[1741039502333,0.6359234,86372.0,86371.0,0.25230357]
[1741039502478,0.5317254,86372.0,86371.0,0.25230357]
[1741039502658,0.0001694,86372.0,86371.0,0.59699284]
[1741039503028,0.0001694,86372.0,86371.0,0.36543384]
[1741039503231,0.231532,86381.0,86380.0,0.02973543]
[1741039503668,0.231452,86411.0,86403.0,0.08339484]
[1741039503801,0.231441,86415.0,86414.0,0.08339484]
[1741039504010,0.231441,86415.0,86388.0,0.231512]
[1741039504011,0.07227122,86416.0,86415.0,0.11313027]
[1741039504188,0.3,86415.0,86402.0,0.76352406]
[1741039504389,0.3,86413.0,86386.0,0.08339484]
[1741039504640,0.3,86396.0,86395.0,0.08339484]
[1741039504832,0.231513,86388.0,86387.0,0.36543384]
[1741039505037,0.231513,86388.0,86385.0,0.08339484]
[1741039505038,0.231518,86386.0,86385.0,0.08339484]
[1741039505209,0.681581,86386.0,86385.0,0.08379084]
[1741039505415,0.10145289,86435.0,86402.0,0.08339484]
[1741039505620,0.30370922,86416.0,86415.0,0.08339484]
[1741039505932,0.30370922,86416.0,86410.0,0.08339484]
[1741039505933,0.07227122,86416.0,86410.0,0.08339484]
[1741039506138,0.231462,86407.0,86406.0,0.08339484]
[1741039506337,0.3,86406.0,86389.0,0.25230357]
[1741039506640,0.231457,86409.0,86407.0,0.08339484]
[1741039506815,0.23146,86408.0,86407.0,0.08339484]
[1741039507230,0.30371122,86416.0,86389.0,0.25269957]
[1741039507231,0.30370922,86416.0,86415.0,0.08339484]
[1741039507434,0.07227122,86416.0,86415.0,0.59687484]
[1741039507640,2e-07,86425.0,86424.0,0.08339484]
[1741039507898,0.236274,86478.0,86424.0,0.08339484]
[1741039507899,8e-07,86470.0,86469.0,0.11313027]
[1741039508038,0.005,86478.0,86477.0,0.34440527]
[1741039508220,0.005,86478.0,86477.0,0.42540527]
[1741039508580,0.005,86478.0,86477.0,0.19413027]
[1741039508790,0.005,86478.0,86477.0,0.11313027]
[1741039509054,0.005,86478.0,86477.0,0.34440527]
[1741039509298,0.00024649,86492.0,86489.0,0.08339484]
[1741039509518,0.231251,86486.0,86485.0,0.08339484]
[1741039509766,0.231251,86486.0,86469.0,0.000396]
[1741039509767,0.231253,86485.0,86484.0,0.08339484]
[1741039509958,0.22624158,86485.0,86484.0,0.08339484]
[1741039510092,0.00024649,86492.0,86491.0,0.08339484]
[1741039510293,0.00024649,86492.0,86491.0,0.34436727]
[1741039510991,0.00024649,86492.0,86491.0,0.02973543]
[1741039511113,0.00024649,86492.0,86491.0,0.11313027]
[1741039511775,0.23148149,86492.0,86491.0,0.11313027]
[1741039511981,0.00024649,86492.0,86489.0,0.02973543]
[1741039512140,0.23124,86490.0,86489.0,0.08339484]
[1741039512336,0.23124,86490.0,86468.0,0.1076]
[1741039512337,0.231256,86484.0,86483.0,0.11313027]
[1741039512538,0.231283,86474.0,86473.0,0.08339484]
[1741039512739,0.00024649,86492.0,86477.0,0.08339484]
[1741039512961,0.3,86490.0,86477.0,0.08339484]
[1741039513162,0.231272,86478.0,86477.0,0.08339484]
[1741039514005,0.231237,86491.0,86477.0,0.08339484]
[1741039514181,0.231247,86488.0,86483.0,0.08339484]
[1741039514385,0.00024649,86492.0,86491.0,0.08339484]
[1741039514606,0.23148149,86492.0,86491.0,0.08339484]
[1741039514813,0.00024649,86492.0,86491.0,0.08339484]
[1741039515008,0.00024649,86492.0,86475.0,0.23128]
[1741039515009,0.18161919,86504.0,86499.0,0.08339484]
[1741039515349,0.01204845,86516.0,86497.0,0.08339484]
[1741039515350,0.231211,86501.0,86497.0,0.08339484]
[1741039515554,0.231211,86501.0,86499.0,0.11313027]
[1741039515760,0.236202,86505.0,86470.0,0.00161856]
[1741039515761,0.005,86505.0,86504.0,0.11313027]
[1741039515964,0.005,86505.0,86504.0,0.42033327]
[1741039516324,0.005,86505.0,86504.0,0.42072927]
[1741039517303,0.005,86505.0,86504.0,0.18952627]
[1741039517517,0.005,86505.0,86504.0,0.10613143]
[1741039517720,0.005,86505.0,86504.0,0.18952627]
[1741039517922,0.005,86505.0,86504.0,0.11352627]
[1741039518118,0.005,86505.0,86504.0,0.10797181]
[1741039518320,0.2362,86505.0,86504.0,0.10797181]
[1741039518539,0.005,86505.0,86504.0,0.10797181]
[1741039518748,0.2362,86505.0,86504.0,0.10797181]
[1741039518958,0.005,86505.0,86504.0,0.10797181]
[1741039519480,0.2362,86505.0,86504.0,0.02457697]
[1741039520005,0.2362,86505.0,86504.0,0.08339484]
[1741039520202,0.2362,86505.0,86504.0,0.10797181]
[1741039520406,0.2362,86505.0,86504.0,0.08339484]
[1741039520551,0.2362,86505.0,86504.0,0.10797181]
[1741039520752,0.231208,86503.0,86502.0,0.08339484]
[1741039521393,0.231208,86503.0,86502.0,0.10797181]
[1741039521597,0.236202,86505.0,86504.0,0.10797181]
[1741039521598,0.005,86505.0,86504.0,0.10797181]
[1741039521800,0.005,86505.0,86504.0,0.33917481]
[1741039524399,0.005,86505.0,86504.0,0.10797181]
[1741039524604,0.24298762,86530.0,86504.0,0.10797181]
[1741039524928,0.03369955,86537.0,86532.0,0.33909981]
[1741039525265,0.236125,86533.0,86532.0,0.10797181]
[1741039525847,0.005,86533.0,86532.0,0.33909981]
[1741039526425,0.005,86533.0,86532.0,0.3394962]
[1741039526865,0.0001699,86568.0,86545.0,0.33906481]
[1741039527383,0.0001699,86568.0,86559.0,0.33902781]
[1741039527811,0.0001699,86568.0,86559.0,0.42112781]
[1741039528489,0.0001699,86568.0,86559.0,0.57072781]
[1741039528731,0.0001699,86568.0,86559.0,0.5711242]
[1741039528928,0.0001699,86568.0,86559.0,0.4711242]
[1741039529334,0.0001699,86568.0,86559.0,0.2400682]
[1741039529545,0.231039,86566.0,86559.0,0.10707336]
[1741039529749,0.0001699,86568.0,86559.0,0.4215242]
[1741039529968,0.0051692,86560.0,86559.0,0.4215242]
[1741039530518,0.0051692,86560.0,86559.0,0.1904682]
[1741039530905,0.0051692,86560.0,86559.0,0.10707336]
[1741039531261,0.2362222,86560.0,86559.0,0.1083682]
[1741039531459,0.0051692,86560.0,86559.0,0.1083682]
[1741039531668,0.0051692,86560.0,86559.0,0.3394242]
[1741039532026,0.0051692,86560.0,86559.0,0.25602936]
[1741039532226,0.0051692,86560.0,86559.0,0.3394242]
[1741039532657,0.0051692,86560.0,86559.0,0.1083682]
[1741039532879,0.0051692,86560.0,86559.0,0.3394242]
[1741039533095,0.0051692,86560.0,86559.0,0.1083682]
[1741039533491,0.0051692,86560.0,86559.0,0.34104123]
[1741039533661,0.0051692,86560.0,86559.0,0.1083682]
[1741039534046,0.2362222,86560.0,86559.0,0.1083682]
[1741039534336,0.2362222,86560.0,86559.0,0.00039639]
[1741039534690,0.4237562,86560.0,86559.0,0.00039639]
[1741039534911,0.47913976,86560.0,86559.0,0.00039639]
[1741039535064,0.77913976,86560.0,86559.0,3.9e-07]
[1741039535255,0.3,86549.0,86522.0,0.02457697]
[1741039535615,0.231163,86519.0,86518.0,0.25270011]
[1741039535818,0.58361,86519.0,86518.0,0.00039654]
[1741039535971,0.231163,86519.0,86518.0,0.00039654]
[1741039536373,0.2312,86505.0,86496.0,0.25230357]
[1741039536596,0.231213,86500.0,86499.0,0.05573714]
[1741039536795,0.231215,86500.0,86498.0,0.05573714]
[1741039537017,0.231215,86500.0,86499.0,0.02457697]
[1741039537162,0.231216,86499.0,86498.0,0.05573714]
[1741039537364,0.231216,86499.0,86477.0,0.00161856]
[1741039537365,0.231227,86495.0,86494.0,0.05573714]
[1741039537563,0.231237,86491.0,86490.0,0.05573714]
[1741039537760,0.231237,86491.0,86477.0,0.00161856]
[1741039537761,0.231254,86485.0,86477.0,0.05573714]
[1741039538024,0.231304,86466.0,86465.0,0.08031411]
[1741039538162,0.231304,86466.0,86462.0,0.08031411]
[1741039538163,0.231312,86463.0,86462.0,0.08031411]
[1741039538726,0.231312,86463.0,86461.0,0.05573714]
[1741039538883,0.231312,86463.0,86455.0,0.02457697]
[1741039538884,0.231323,86459.0,86455.0,0.02457697]
[1741039539087,0.536632,86459.0,86447.0,0.05573714]
[1741039539307,0.3,86458.0,86445.0,0.00499]
[1741039539482,0.231395,86432.0,86431.0,0.00499]
[1741039539688,0.3,86451.0,86427.0,0.05573714]
[1741039539880,0.231422,86422.0,86417.0,0.06106594]
[1741039540130,0.231433,86418.0,86417.0,0.0053288]
[1741039540696,0.24105122,86418.0,86417.0,0.0053288]
[1741039540908,0.54105122,86418.0,86417.0,8e-07]
[1741039541416,0.00039568,86418.0,86417.0,8e-07]
[1741039541623,0.00039568,86418.0,86417.0,1.07527397]
[1741039541800,0.00176325,86491.0,86460.0,0.05573714]
[1741039542001,0.231366,86443.0,86440.0,0.02457697]
[1741039542228,0.231398,86431.0,86430.0,0.05573714]
[1741039542611,0.531363,86444.0,86443.0,0.05573714]
[1741039542808,0.231363,86444.0,86443.0,0.05573714]
[1741039543009,0.231379,86438.0,86436.0,0.02457697]
[1741039543211,0.231379,86438.0,86437.0,0.05573714]
[1741039543410,0.04426286,86484.0,86450.0,0.05573714]
[1741039543411,0.07542303,86484.0,86450.0,0.05573714]
[1741039543657,0.07542303,86484.0,86443.0,0.05573714]
[1741039543658,0.231363,86444.0,86443.0,0.05573714]
[1741039543914,0.00972572,86464.0,86454.0,0.02457697]
[1741039544120,0.231334,86455.0,86454.0,0.02457697]
[1741039544322,0.231334,86455.0,86454.0,0.08031411]
[1741039544520,0.3,86472.0,86454.0,0.08031411]
[1741039544521,0.231219,86498.0,86478.0,0.05573714]
[1741039544873,0.231251,86486.0,86485.0,0.05573714]
[1741039545084,0.231278,86476.0,86475.0,0.1]
[1741039545292,0.231251,86486.0,86485.0,0.1]
[1741039545967,0.231251,86486.0,86485.0,0.10011819]
[1741039546358,0.26532585,86486.0,86485.0,0.00011819]
[1741039546553,0.38875585,86486.0,86485.0,0.00011819]
[1741039546953,0.40760485,86486.0,86485.0,0.00011819]
[1741039547411,0.70760485,86486.0,86485.0,0.00011819]
[1741039547705,0.70760485,86486.0,86485.0,1.9e-07]
[1741039547910,0.56532585,86486.0,86485.0,1.9e-07]
[1741039548462,0.231275,86477.0,86476.0,0.22330375]
[1741039548589,0.391491,86477.0,86476.0,0.22342203]
[1741039548840,0.231275,86477.0,86476.0,0.22342203]
[1741039549668,0.3234,86524.0,86488.0,0.1]
[1741039549869,0.231243,86489.0,86488.0,0.1]
[1741039550044,0.231259,86483.0,86482.0,0.16512188]
[1741039550675,0.231259,86483.0,86482.0,0.06512188]
[1741039550873,0.26532361,86483.0,86482.0,0.16512188]
[1741039551120,6.1e-07,86483.0,86482.0,1.25940712]
[1741039551324,0.231154,86523.0,86509.0,0.39631088]
[1741039551473,0.231146,86526.0,86509.0,1.24359512]
[1741039551679,0.231146,86526.0,86517.0,0.231167]
[1741039551680,0.10145289,86519.0,86517.0,0.231167]
[1741039551888,0.10145289,86519.0,86518.0,0.06512188]
[1741039552056,0.33261589,86519.0,86518.0,0.16512188]
[1741039552485,0.33261589,86519.0,86518.0,0.06512188]
[1741039552664,0.33301221,86519.0,86518.0,0.16512188]
[1741039553512,0.231177,86514.0,86512.0,0.16512188]
[1741039553808,0.231169,86517.0,86516.0,0.16512188]
[1741039553968,0.231181,86512.0,86511.0,0.1]
[1741039554171,0.231187,86510.0,86509.0,0.72052424]
[1741039554730,0.231213,86500.0,86499.0,0.06512188]